Cogmind - Beta 12 @@@ ROGUE MODE // 2024.01.09 @ 05:42:25 Player: Dosh Result: Destroyed by YI-UF0 with YI-UF0's Doublenader Performance ------------- Evolutions (0) 0 Regions Visited (2) 400 Robots Destroyed (27) 135 Value Destroyed (567) 567 Prototype IDs (0) 0 Alien Tech Used (0) 0 Bonus (0) 0 TOTAL SCORE: 1102 Bonus ------- None Cogmind --------- Core Integrity 0/250 Matter 236/300 Energy 100/100 System Corruption 0% Temperature Cool (0) Movement Rolling (110) Ox2 Location -10/Mines Parts ------- > --- POWER (1) -------- (None) > --- PROPULSION (2) --- Wheel > --- UTILITY (2) ------ Large Storage Unit Core Shielding > --- WEAPON (2) ------- Light Assault Rifle Grenade Launcher > --- INVENTORY (15) --- Light Treads Light Treads Light Treads Light Treads Small Storage Unit Cargo Storage Unit Structural Scanner Improved Terrain Scanner Hacking Suite Hacking Suite Grenade Launcher Grenade Launcher Rocket Launcher Peak State ------------ > --- POWER ------------ Light Ion Engine > --- PROPULSION ------- Light Treads Light Treads > --- UTILITY ---------- Large Storage Unit Core Shielding > --- WEAPON ----------- Assault Rifle Light Assault Rifle > --- INVENTORY -------- Light Treads Light Treads Wheel Wheel Small Storage Unit Cargo Storage Unit Structural Scanner Improved Terrain Scanner Hacking Suite Hacking Suite Grenade Launcher Grenade Launcher Grenade Launcher [Rating: 9] Favorites ----------- Power Ion Engine Engine Ion Engine Propulsion Light Treads Treads Light Treads Wheel Wheel Utility Large Storage Unit Device Seismic Detector Storage Large Storage Unit Protection Core Shielding Weapon Light Assault Rifle Energy Gun Small Laser Ballistic Gun Light Assault Rifle Launcher Grenade Launcher Build | -11 -10 -10 ------- Run | Jun Mat Min Slots Evolved . | . . . Power . | . . . Propulsion . | . . . Utility . | . . . Weapon . | . . . Parts Attached 24 | 8 13 3 Power 2 | 1 1 . Engine 2 | 1 1 . Core . | . . . Reactor . | . . . Propulsion 11 | 2 7 2 Treads 7 | 2 5 . Leg . | . . . Wheel 4 | . 2 2 Hover . | . . . Flight . | . . . Utility 4 | 2 2 . Device 1 | 1 . . Storage 2 | 1 1 . Processor . | . . . Hackware . | . . . Protection 1 | . 1 . Artifact . | . . . Weapon 7 | 3 3 1 Energy Gun 1 | 1 . . Energy Cannon . | . . . Ballistic Gun 5 | 2 3 . Ballistic Cannon . | . . . Launcher 1 | . . 1 Special Weapon . | . . . Impact Weapon . | . . . Slashing Weapon . | . . . Piercing Weapon . | . . . Special Melee Weapon . | . . . Unidentified Prototypes . | . . . Parts Lost 6 | . 3 3 Power 2 | . 1 1 Propulsion 1 | . . 1 Utility 1 | . 1 . Weapon 2 | . 1 1 Highest Loss Streak 3 | . 2 3 To Critical Strikes . | . . . Average Slot Usage (%) 94 | . 94 94 Engine 11 | . 11 11 Treads 26 | . 27 23 Device 4 | . 4 . Storage 14 | . 14 14 Protection 7 | . 6 14 Ballistic Gun 27 | . 27 25 Naked Turns . | . . . Heaviest Build 29 | 14 29 27 Greatest Support 40 | 40 40 40 Greatest Overweight (x) 2 | . 1 2 Average Overweight (x) . | . . . Largest Inventory Capacity 15 | 8 15 15 Average Capacity 14 | 6 14 15 Most Carried 15 | 4 14 15 Average Carried 9 | 1 9 13 Final Capacity 15 | 8 15 15 Final Carried 14 | 3 13 14 Class Distribution -------------------- 100% | Mutant Dominant Class ---------------- Mutant | -10/Materials Mutant | -10/Mines Resources | -11 -10 -10 ----------- Run | Jun Mat Min Matter Collected 736 | 269 440 27 Remotely . | . . . Salvage Created 895 | 56 839 . Parts 71 | 8 63 . Haulers Intercepted 2 | . 2 . Recyclers Shooed 4 | . 4 . Parts Field Recycled . | . . . Retrieved Matter . | . . . Parts Self-Destructed . | . . . Prevented . | . . . Kills | -11 -10 -10 ------- Run | Jun Mat Min Combat Hostiles Destroyed 14 | . 14 . Guns 14 | . 14 . Classes Destroyed 8 | 1 7 . Worker 1 | . 1 . Tunneler 2 | 2 . . Hauler 2 | . 2 . Recycler 1 | . 1 . Operator 4 | . 4 . Watcher 3 | . 3 . Swarmer 3 | . 3 . Grunt 11 | . 11 . Best Kill Streak 5 | 2 5 . Combat Bots Only 4 | . 4 . Max Kills in Single Turn 2 | 1 2 . Gunslinging . | . . . Exploded . | . . . Melee . | . . . Uniques/NPCs Destroyed . | . . . Combat | -11 -10 -10 -------- Run | Jun Mat Min Damage Taken 1148 | . 639 509 Core 252 | . 111 141 Absorbed by Shields . | . . . Redirected to Shielding 29 | . 1 28 Regen/Repaired (Parts) 303 | . 303 . Core Remaining (%) 100 | 100 . . Volleys Fired 108 | 4 100 4 Largest 2 | 2 2 2 Hottest 40 | 40 40 40 Shots Fired 213 | 8 197 8 Gun 213 | 8 197 8 Cannon . | . . . Launcher . | . . . Special . | . . . Kinetic 213 | 8 197 8 Thermal . | . . . Explosive . | . . . Electromagnetic . | . . . Robot Hit Streak 7 | 4 7 1 Robot Miss Streak 7 | 2 7 2 Penetration Max . | . . . Secondary Targets . | . . . Shots Hit Robots 119 | 4 112 3 Core Hits 49 | 2 47 . Critical Kills . | . . . Critical Parts Destroyed 1 | . 1 . Critical Strikes 1 | . 1 . Destroy 1 | . 1 . Melee Attacks . | . . . Impact . | . . . Slashing . | . . . Piercing . | . . . Sneak Attacks . | . . . Combat Hostiles . | . . . Follow-up Attacks . | . . . Damage Inflicted 1383 | 46 1296 41 Guns 1315 | 46 1241 28 Cannons . | . . . Explosions . | . . . Melee . | . . . Ramming 68 | . 55 13 Kinetic 1315 | 46 1241 28 Thermal . | . . . Explosive . | . . . Electromagnetic . | . . . Impact . | . . . Slashing . | . . . Piercing . | . . . Highest Corruption . | . . . Average Corruption . | . . . Corruption Purged . | . . . Corruption Blocked . | . . . Overload Shots . | . . . Overflow Damage . | . . . Projectiles . | . . . Explosions . | . . . Melee . | . . . Knockbacks . | . . . Impact . | . . . Kinetic . | . . . Secondary . | . . . Self-Inflicted Damage . | . . . Shots . | . . . Rammed 13 | . 12 1 Targets Rammed 14 | . 13 1 Kicked . | . . . Crushed 1 | . 1 . Highest Temperature 12 | . 12 . Average Temperature 7 | . 7 . Received Heat Transfer 324 | . 324 . Siege Activations . | . . . Robots Corrupted . | . . . Combat Hostiles . | . . . Parts Fried . | . . . Impact Corruptions . | . . . Robots Melted . | . . . Combat Hostiles . | . . . Parts Melted . | . . . Heat Transferred . | . . . Parts Sabotaged . | . . . Parts Stolen . | . . . Parts Stripped . | . . . Power Chain Reactions . | . . . Missiles Intercepted . | . . . Alert | -11 -10 -10 ------- Run | Jun Mat Min Peak Influence 211 | 10 211 67 Initial 52 | . 6 52 Average 72 | 3 80 51 Maximum Alert Level 1 | . 1 . Low Security (%) 99 | 100 99 100 Level 1 . | . . . Level 2 . | . . . Level 3 . | . . . Level 4 . | . . . Level 5 . | . . . High Security . | . . . Max Security . | . . . Squads Dispatched 7 | . 7 . Investigation 3 | . 3 . Extermination . | . . . Reinforcement 4 | . 4 . Assault . | . . . Garrison . | . . . Intercept . | . . . Searches Triggered . | . . . Construction Impeded . | . . . Haulers Reinforced . | . . . Active Scanning Responses . | . . . Cargo Convoy Interrupts . | . . . Stealth | -11 -10 -10 --------- Run | Jun Mat Min Distress Signals 3 | . 2 1 Communications Jammed . | . . . Distress Signals . | . . . Times Spotted 41 | . 36 5 Peak Tracking Total 3 | . 3 2 Tactical Retreats 2 | . 1 1 Traps | -11 -10 -10 ------- Run | Jun Mat Min Traps Triggered 1 | . 1 . Indirectly . | . . . Trap Hack Attempts . | . . . Triggered . | . . . Disarmed . | . . . Reprogrammed . | . . . Reused . | . . . Traps Extracted . | . . . Installed . | . . . Triggered . | . . . Machines | -11 -10 -10 ---------- Run | Jun Mat Min Machines Disabled . | . . . Max in Single Turn . | . . . Machines Repaired . | . . . Machines Sabotaged . | . . . Overloaded Fab Kills . | . . . Hacking | -11 -10 -10 --------- Run | Jun Mat Min Machines Accessed 7 | . 7 . Terminals 4 | . 4 . Fabricators . | . . . Repair Stations 1 | . 1 . Recycling Units 2 | . 2 . Scanalyzers . | . . . Garrison Access . | . . . Total Hacks 22 | . 22 . Successful 17 | . 17 . Failed 5 | . 5 . Catastrophic . | . . . Database Lockouts . | . . . Manual 12 | . 12 . Terminals 11 | . 11 . Fabricators . | . . . Repair Stations 9 | . 9 . Recycling Units 2 | . 2 . Scanalyzers . | . . . Garrison Access . | . . . Terminal Hacks 5 | . 5 . Robot Analysis 5 | . 5 . Fabricator Hacks . | . . . Repair Station Hacks 8 | . 8 . Scan Component 4 | . 4 . Repair 4 | . 4 . Recycling Unit Hacks . | . . . Scanalyzer . | . . . Garrison Access Hacks . | . . . Unauthorized Hacks 4 | . 4 . Terminals 2 | . 2 . Botnet 2 | . 2 . Fabricators . | . . . Repair Stations . | . . . Recycling Units 2 | . 2 . Tunnel 2 | . 2 . Scanalyzers . | . . . Garrison Access . | . . . Data Cores Recovered . | . . . Used . | . . . Hacking Detections 5 | . 5 . Full Trace Events 1 | . 1 . Feedback Events . | . . . Feedback Blocked . | . . . Robot Schematics Acquired . | . . . Robots Built . | . . . Authchips . | . . . Time . | . . . Total Robot Build Rating . | . . . Part Schematics Acquired . | . . . Parts Built . | . . . Authchips . | . . . Time . | . . . Total Part Build Rating . | . . . Parts Repaired 4 | . 4 . Time 104 | . 104 . Parts Recycled . | . . . Recycled Matter . | . . . Retrieved Matter . | . . . Retrieved Components . | . . . Parts Scanalyzed . | . . . Part Schematics Acquired . | . . . Parts Damaged . | . . . Bothacking | -11 -10 -10 ------------ Run | Jun Mat Min Used RIF Installer . | . . . Robots Hacked . | . . . Non-combat . | . . . Combat . | . . . Robot Hacks Applied . | . . . Relay Couplers Released . | . . . Fabnet Peak Effective % . | . . . Robots Rewired . | . . . Allies Hacked . | . . . Hacks Repelled . | . . . Allies | -11 -10 -10 -------- Run | Jun Mat Min Total Allies . | . . . Largest Group . | . . . Highest-Rated Group . | . . . Highest-Rated Ally . | . . . Total Orders . | . . . Ally Attacks . | . . . Total Damage . | . . . Kills . | . . . Allies Corrupted . | . . . Allies Melted . | . . . Intel | -11 -10 -10 ------- Run | Jun Mat Min Robot Analysis Total 5 | . 5 . Derelict Logs Recovered . | . . . Drone Launches . | . . . Drone Recoveries . | . . . Exploration | -11 -10 -10 ------------- Run | Jun Mat Min Turns Passed 2413 | 138 1987 288 Spaces Moved 1182 | 71 955 156 Core 2 | 2 . . Treads 1126 | 69 919 138 Legs . | . . . Wheels 54 | . 36 18 Hover . | . . . Flight . | . . . Fastest Speed 50 | 50 95 95 Average Speed 157 | 156 157 153 Slowest Speed 160 | 160 160 160 Overloaded Moves . | . . . Propulsion Burnouts . | . . . Robots Hopped . | . . . Cave-ins Triggered . | . . . Exploration Rate (%) 49 | 5 98 46 Regions Visited 2 Branch Regions 1 Pre-discovered Areas 2 | . 2 . Known Exits Taken . | . . . Unknown Exits Taken 2 | 1 1 . Scrap Searched 1 | . . 1 Spaces Dug . | . . . Terrain Destroyed . | . . . Melee . | . . . Projectile . | . . . AOE . | . . . Terrain Rammed . | . . . Walls Destroyed . | . . . Machines Disabled . | . . . Actions | -11 -10 -10 --------- Run | Jun Mat Min Total 1530 | 88 1247 195 Wait 188 | . 159 29 Move 1180 | 70 954 156 Hop . | . . . Pick Up 14 | 4 8 2 Fast Attach 11 | 7 4 . Attach 3 | 1 1 1 Detach 1 | 1 . . Swap 10 | . 8 2 Drop 1 | 1 . . Fire 108 | 4 100 4 Melee . | . . . Ram . | . . . Kick . | . . . Crush 14 | . 13 1 Escape Stasis . | . . . Rewire . | . . . Trap . | . . . Miscellaneous . | . . . Route ------- -11/Junkyard -10/Materials (discovered 5 exits: [*Mat x3] / [*Min x2]) -10/Mines (discovered 1 exit: [*Mat]) History --------- Turn | Location | Event 7 | -11/Junkyard | Discovered new exit (range 16) 139 | -11/Junkyard | Entered Materials 309 | -10/Materials | Build established: Mutant 532 | -10/Materials | Discovered new exit (range 12) 636 | -10/Materials | Discovered new exit (range 16) 1215 | -10/Materials | Discovered new exit (range 16) 1613 | -10/Materials | Discovered new exit (range 16) 1768 | -10/Materials | Discovered new exit (range 5) 1877 | -10/Materials | Repaired Lgt. Treads 1904 | -10/Materials | Repaired Lgt. Treads 1932 | -10/Materials | Repaired Assault Rifle 1959 | -10/Materials | Repaired Lgt. Assault Rifle 2126 | -10/Materials | Entered Mines 2201 | -10/Mines | YI-UF0 nonchalantly dropped a Grenade Launcher on the ground 2326 | -10/Mines | Received a Rocket Launcher from a helpful Derelict 2351 | -10/Mines | Core integrity fell below 50% 2369 | -10/Mines | Core integrity fell below 20% 2373 | -10/Mines | Discovered new exit (range 13) 2375 | -10/Mines | Excavation squad dispatched 2375 | -10/Mines | A large section of the Mines collapsed 2399 | -10/Mines | Lost 3 parts (1p1n1w) 2414 | -10/Mines | Destroyed by YI-UF0 with YI-UF0's Doublenader Last Messages --------------- 02366_ The unstable cave ceiling collapses. 02366_ Lgt. Ion Engine destroyed. 02367_ The unstable cave ceiling collapses. 02368_ Wheel destroyed. 02369_ The unstable cave ceiling collapses. 02370_ YI-UF0 mumbles something. 02370_ The unstable cave ceiling collapses. 02373_ EXIT=FOUND 02375_ ALERT: Suspicious cave-in, suspected derelict activity in mines. Dispatching escorted excavation squad. 02396_ U-05 Engineer builds a Wall. 02400_ U-05 Engineer lays Concrete. 02401_ U-05 Engineer builds a Wall. 02404_ U-05 Engineer destroyed. 02406_ G-34 Mercenary destroyed. 02408_ YI-UF0 mumbles something. 02408_ YI-UF0: "BOOSH!" 02408_ G-34 Mercenary destroyed. 02408_ T-07 Excavator destroyed. 02408_ G-34 Mercenary destroyed. Map ----- +----------------------------------------------------+ | ???????? ??????????????????????????????????????? | | ??????? *??????????????????????????????????????? | | ??????? %??????????????????????????????????????? | | ?????? # =??????????????????????????????????????? | | ??????? %#?????????????????????????????????????? | | ?????## =#?????????????????????????????????????? | | ????#### #?????????????????????????????????????? | | ????? ##???????????????????????????????????? | | ?????# #???????????????????????????????????? | | ?????# ######??????????????????????????????? | | ?????# ## ???????????????????????????????? | | ?????# !% ## #???????????????????????????????? | | ?????# # ##??????????????????????????????? | | ????## ????????###???????????????????? | | ????# ###????# #???????????????????? | | ????# ##??? ???????????????????? | | ????# % ##?? ?#?????????????????? | | ????# ??# #?????????????????? | | ????# # # g ##?# """ ##????????????????? | | ????## # ### """ ####?????????????? | | ?????# *# ! """ kt ??????????????? | | ########% = #???????????????? | | !! ## %%%% r #????????????????? | | ######### ## ### =! #??????????????????? | | ????????##?# # # #???????????????????? | | ??????????# #### @###???????????????????? | | ??????????# ###### ##?????????????????????? | | ??????????# ????###??????????????????????? | | ????????? ????????????????????????????? | | ??????? ???????????????????????????? | | ?????< ## ??????????????????????????? | | ???? ??# ?????????????????????????? | | ???? ???# #### ?????????????????????????? | | ????#????# #????### ????????????????????????? | | ????????? ????????# ???????????????????????? | | ???????? ?????????# ???????????????????????? | | ???????## ??????????##??????????????????????? | | ?????????# ???????????????????????????????????? | | ????????????#???????????????????????????????????? | | ????????????????????????????????????????????????? | | | | | | | | | | | | | | | | | | | | | +----------------------------------------------------+ Best States ------------- Heat Dissipation 25 Energy Generation 10 Energy Capacity 250 Matter Stores 300 Matter Capacity 300 Sight Range 16 Terrain Scan Density 10 Core Shielding 20 Evasion (%) 41 Recoil Reduction 2 Item Schematics ----------------- None Robot Schematics ------------------ None Fabricated ------------ Nothing Alien Tech Used ----------------- None Achievements -------------- None Challenges ------------ None Game ------ Seed UtilityLinkedAirjet Manual? 0 Play Time 00:14:30 Cumulative 90.6 hours Start 2024.01.09 @ 05:29:49 End 2024.01.09 @ 05:42:25 Sessions 1 Manual Loads 0 Difficulty Rogue Special Mode None Game No. 113 Rogue 113 Adventurer 0 Explorer 0 Win Type - Total 1 Types 1/0/0/0/0/0/0/0/0 Lore% 46 Gallery% 54 Achievement% 46 Wizard Run 0 Options --------- ASCII 0 Keyboard 1 Movement Numpad Keybinds 0 Fullscreen 2 Font 18/SmallcapsGlow Map View 76x50 Tactical HUD 1 Map Filters NONE Filters NONE Steam 1 RUN: 4226f7e4-72f4-48de-a878-8eef8d5d5921